bitfinex-derivatives/quotes_SOLF0:USTF0_20240913
["timestamp","ask_amount","ask_price","bid_price","bid_amount"]
[1726212926252,11.48,133.94,133.91,1.05900767]
[1726212926457,2.7775,134.02,133.91,1.05900767]
[1726212926458,11.48,133.93,133.91,1.05900767]
[1726212926757,14.8403,133.92,133.91,1.05900767]
[1726212933968,3.3606,133.91,133.9,3.57153334]
[1726212934263,14.8406,133.91,133.9,3.57153334]
[1726212935172,11.48,133.91,133.88,0.6287562]
[1726212935371,11.48,133.89,133.88,0.6287562]
[1726212936170,14.8411,133.89,133.88,0.6287562]
[1726212942367,11.48,133.89,133.88,0.6287562]
[1726212943375,11.48,133.9,133.88,0.6287562]
[1726212945273,11.48,133.9,133.88,3.9900562]
[1726212948570,11.48,133.9,133.88,0.6287562]
[1726212949370,11.48,133.89,133.88,0.6287562]
[1726212951575,14.8411,133.89,133.88,0.6287562]
[1726212953475,3.3611,133.89,133.88,0.6287562]
[1726212953775,14.8411,133.89,133.88,0.6287562]
[1726212954076,3.3611,133.89,133.88,0.6287562]
[1726212954280,14.8411,133.89,133.88,0.6287562]
[1726212954583,11.48,133.89,133.88,0.6287562]
[1726212954975,14.8411,133.89,133.88,0.6287562]
[1726212955177,11.48,133.89,133.88,0.6287562]
[1726212956579,11.48,133.9,133.88,0.6287562]
[1726212957573,14.8409,133.9,133.88,0.6287562]
[1726212957774,11.48,133.89,133.88,0.6287562]
[1726212957982,3.3609,133.9,133.88,0.6287562]
[1726212958186,11.48,133.89,133.88,0.6287562]
[1726212960688,14.8411,133.89,133.88,0.6287562]
[1726212972986,3.3611,133.89,133.88,0.6287562]
[1726212973185,14.8411,133.89,133.88,0.6287562]
[1726212973410,11.48,133.89,133.88,0.6287562]
[1726212974596,11.48,133.9,133.88,0.6287562]
[1726212975892,14.8408,133.9,133.88,0.6287562]
[1726212977001,11.48,133.9,133.88,0.6287562]
[1726212977189,11.48,133.89,133.88,0.6287562]
[1726212977703,14.8411,133.89,133.88,0.6287562]
[1726212984811,3.3611,133.89,133.88,0.6287562]
[1726212985006,14.8411,133.89,133.88,0.6287562]
[1726212987309,3.3613,133.88,133.87,3.67484999]
[1726212987621,14.8413,133.88,133.87,3.67484999]
[1726212990123,11.48,133.88,133.85,0.58712246]
[1726212990315,11.48,133.86,133.85,0.58712246]
[1726212990615,14.8418,133.86,133.85,0.58712246]
[1726212990916,11.48,133.86,133.85,0.58712246]
[1726212993017,1.4122,133.92,133.85,0.58712246]
[1726212993214,11.48,133.88,133.85,0.58712246]
[1726212993815,11.48,133.88,133.86,3.3618]
[1726212994220,11.48,133.88,133.85,0.58712246]
[1726212994414,11.48,133.88,133.86,3.3618]
[1726212995417,14.8414,133.88,133.85,3.94912246]
[1726212996518,11.48,133.87,133.85,3.94912246]
[1726212997312,11.48,133.86,133.85,0.58712246]
[1726212997819,14.8418,133.86,133.85,0.58712246]
[1726212998424,11.48,133.86,133.85,0.58712246]
[1726213010425,14.8417,133.87,133.85,3.94922246]
[1726213010625,11.48,133.87,133.85,3.94922246]
[1726213010832,14.8414,133.88,133.85,3.94922246]
[1726213012147,11.48,133.86,133.85,3.94922246]
[1726213020231,16.10092219,133.91,133.86,3.3617]
[1726213020432,11.48,133.89,133.85,12.06712246]
[1726213020624,2.8352,133.98,133.87,11.48]
[1726213020830,11.48,133.93,133.88,15.15254002]
[1726213021133,11.48,133.92,133.89,1.3554]
[1726213021531,11.48,133.91,133.89,1.3554]
[1726213021737,11.48,133.9,133.89,1.3554]
[1726213022239,11.48,133.9,133.85,1.94252246]
[1726213022538,3.65921996,133.93,133.85,1.94252246]
[1726213022539,11.48,133.88,133.85,1.94252246]
[1726213022934,11.48,133.86,133.85,5.30462246]
[1726213023842,3.3612,133.89,133.86,3.3618]
[1726213024043,11.48,133.88,133.86,3.3618]
[1726213024252,11.48,133.88,133.85,1.94252246]
[1726213024556,14.8414,133.88,133.85,5.30442246]
[1726213024734,11.48,133.88,133.85,5.30442246]
[1726213025638,14.8414,133.88,133.85,5.30442246]
[1726213029445,2.8166,133.94,133.85,13.42252246]
[1726213029642,11.48,133.9,133.85,13.42252246]
[1726213029844,11.48,133.9,133.87,3.3614]
[1726213030044,11.48,133.9,133.85,13.42252246]
[1726213030348,11.48,133.9,133.88,3.3613]
[1726213031240,11.48,133.89,133.87,3.3615]
[1726213031747,16.09276072,133.93,133.85,13.42252246]
[1726213031949,11.48,133.88,133.85,1.94252246]
[1726213032449,6.60994828,133.94,133.85,1.94252246]
[1726213032637,11.48,133.89,133.85,1.94252246]
[1726213033638,11.48,133.89,133.87,3.3614]
[1726213035647,11.48,133.88,133.85,1.94252246]
[1726213036352,14.8413,133.88,133.86,3.3618]
[1726213037647,11.48,133.88,133.86,3.3618]
[1726213049874,11.48,133.89,133.85,1.94252246]
[1726213051572,11.48,133.89,133.87,3.3614]
[1726213052875,14.8411,133.89,133.87,3.3614]
[1726213053374,11.48,133.89,133.87,3.3614]
[1726213055473,3.3605,133.92,133.89,3.3611]
[1726213055682,11.48,133.91,133.89,3.3611]
[1726213056783,3.3605,133.92,133.89,3.361]
[1726213056967,14.8405,133.92,133.89,3.361]
[1726213057168,16.11601351,133.96,133.88,3.8206278]
[1726213057371,11.48,133.93,133.88,5.1636278]
[1726213057778,14.8402,133.93,133.9,3.3607]
[1726213060671,11.48,133.91,133.89,3.361]
[1726213060870,11.48,133.9,133.85,9.41652246]
[1726213061074,11.48,133.89,133.85,1.94252246]
[1726213061286,11.48,133.87,133.85,1.94252246]
[1726213062788,11.48,133.87,133.86,3.3618]
[1726213063771,11.48,133.88,133.87,3.3615]
[1726213065070,3.3609,133.9,133.87,3.3615]
[1726213065284,11.48,133.89,133.87,3.3615]
[1726213071985,14.8409,133.9,133.87,3.3615]
[1726213072194,14.8411,133.89,133.86,3.3617]
[1726213072788,11.48,133.89,133.85,13.42252246]
[1726213073485,14.8411,133.89,133.86,3.3617]
[1726213076791,11.48,133.87,133.85,3.94912246]
[1726213077192,11.48,133.87,133.85,0.58712246]
[1726213077396,11.48,133.87,133.85,3.94902246]
[1726213085491,3.3615,133.88,133.85,3.94902246]
[1726213085492,14.8412,133.89,133.86,3.3618]
[1726213087201,14.8412,133.89,133.87,3.3615]
[1726213088606,16.11081559,133.95,133.87,11.48]
[1726213089008,14.8407,133.91,133.86,1.3549]
[1726213089202,11.48,133.91,133.87,3.3614]
[1726213089409,11.48,133.91,133.86,12.8349]
[1726213089705,14.8406,133.91,133.86,12.8349]
[1726213090002,14.8406,133.91,133.88,3.3612]
[1726213090605,14.8406,133.91,133.86,12.8349]
[1726213091897,14.8406,133.91,133.88,3.3612]
[1726213092613,11.48,133.9,133.88,3.3612]
[1726213092997,3.3614,133.88,133.85,3.94912246]
[1726213093198,11.48,133.87,133.85,0.58712246]
[1726213094005,11.48,133.87,133.85,3.94902246]
[1726213096207,11.48,133.87,133.85,0.58712246]
[1726213096406,16.11184745,133.94,133.85,0.58712246]
[1726213096608,11.48,133.88,133.85,0.58712246]
[1726213096810,11.48,133.88,133.86,3.3617]
[1726213097206,11.48,133.88,133.85,0.58712246]
[1726213097406,11.48,133.88,133.85,3.94912246]
[1726213098001,3.3613,133.89,133.85,3.94912246]
[1726213098202,11.48,133.88,133.85,3.94912246]
[1726213099811,11.48,133.87,133.85,3.94912246]
[1726213100500,14.8415,133.88,133.85,3.94912246]
[1726213102111,11.48,133.88,133.86,3.3618]
[1726213102408,11.48,133.88,133.85,3.94912246]
[1726213103697,11.48,133.87,133.85,0.58712246]
[1726213104215,14.8416,133.87,133.85,0.58712246]
[1726213107610,14.8415,133.88,133.85,3.94922246]
[1726213107914,11.48,133.88,133.85,0.58712246]
[1726213108104,11.48,133.88,133.85,3.94912246]
[1726213108714,14.8414,133.88,133.85,3.94912246]
[1726213112816,14.8418,133.87,133.85,0.58712246]
[1726213114313,3.3614,133.88,133.85,3.94922246]
[1726213114814,16.11075482,134.01,133.87,11.48]
[1726213115013,11.48,133.93,133.88,11.48]
[1726213115408,14.8403,133.93,133.89,3.361]
[1726213116611,3.3604,133.92,133.89,3.361]
[1726213117008,11.48,133.93,133.9,3.3608]
[1726213117317,14.8402,133.93,133.9,3.3608]
[1726213117513,3.3602,133.93,133.9,3.3608]
[1726213117709,14.8402,133.93,133.9,3.3608]
[1726213121009,14.8402,133.93,133.89,3.361]
[1726213121611,14.8402,133.93,133.9,3.3608]
[1726213123217,16.11336889,133.96,133.87,11.48]
[1726213123411,11.48,133.93,133.88,11.48]
[1726213123617,3.3604,133.92,133.88,11.48]
[1726213123816,3.3604,133.92,133.89,3.3609]
[1726213124219,3.3604,133.92,133.88,11.48]
[1726213124524,16.11336889,133.96,133.89,11.48]
[1726213124734,11.48,133.95,133.91,11.48]
[1726213124913,11.48,133.94,133.9,15.13100119]
[1726213125117,14.84,133.94,133.91,3.3604]
[1726213126219,14.8398,133.95,133.9,15.18106096]
[1726213127518,3.3599,133.94,133.91,3.3605]
[1726213129726,3.3593,133.97,133.91,11.48]
[1726213129921,11.48,133.97,133.91,11.48]
[1726213130817,2.7546,134.02,133.93,3.3599]
[1726213131025,11.48,133.97,133.93,3.3599]
[1726213131927,3.3593,133.96,133.93,3.3599]
[1726213132520,3.3593,133.96,133.94,3.3598]
[1726213134423,14.8392,133.97,133.94,3.3598]
[1726213137325,3.3593,133.96,133.93,14.84]
[1726213137523,3.3593,133.96,133.93,3.36]
[1726213137524,14.8393,133.96,133.93,3.36]
[1726213138223,11.48,133.95,133.91,14.191]
[1726213138638,3.76008615,133.99,133.91,14.191]
[1726213138930,14.8397,133.95,133.92,3.3602]
[1726213141035,11.48,133.94,133.91,3.3605]
[1726213141926,3.3601,133.93,133.91,3.3605]
[1726213142432,3.3601,133.93,133.9,3.3607]
[1726213142631,14.8401,133.93,133.9,3.3607]
[1726213143436,14.8401,133.93,133.9,7.00303028]
[1726213144237,14.8401,133.93,133.9,3.3607]
[1726213145736,3.3604,133.92,133.89,3.3609]
[1726213146128,3.3606,133.91,133.89,3.3609]
[1726213146325,3.3606,133.91,133.88,14.8412]
[1726213146633,11.48,133.92,133.88,11.48]
[1726213147236,14.8405,133.92,133.89,3.3611]
[1726213148034,11.48,133.92,133.88,3.3613]
[1726213148242,11.48,133.91,133.86,12.7979]
[1726213148426,11.48,133.9,133.86,1.3179]
[1726213148630,1.3282,133.97,133.85,3.94922246]
[1726213148631,3.3614,133.88,133.85,3.94922246]
[1726213153541,3.361,133.9,133.87,14.8416]
[1726213157137,3.361,133.9,133.87,11.48]
[1726213158437,3.361,133.9,133.87,14.8416]
[1726213161547,3.3611,133.89,133.86,3.3617]
[1726213164249,3.3614,133.88,133.86,3.3617]
[1726213164451,3.3614,133.88,133.85,3.94912246]
[1726213166050,3.3617,133.87,133.85,0.58712246]
[1726213172851,3.3618,133.86,133.85,0.58712246]
[1726213178552,14.8418,133.86,133.85,0.58712246]
[1726213181259,11.48,133.87,133.85,0.58712246]
[1726213182961,3.3618,133.86,133.85,0.58712246]
[1726213184365,14.8417,133.87,133.85,0.58712246]
[1726213185158,3.3617,133.87,133.85,0.58712246]
[1726213185360,11.48,133.9,133.86,11.48]
[1726213185758,2.7449,133.95,133.87,11.48]
[1726213185961,3.3608,133.91,133.88,3.3613]
[1726213186763,3.3609,133.9,133.87,14.8415]
[1726213186969,11.48,133.92,133.87,11.48]
[1726213187766,3.3608,133.9,133.88,3.3613]
[1726213188161,3.3608,133.9,133.85,1.94702246]
[1726213188162,11.48,133.9,133.85,1.94702246]
[1726213188466,3.3614,133.88,133.86,3.3617]
[1726213190268,3.3612,133.89,133.86,3.3617]
[1726213191052,3.3612,133.89,133.87,3.3616]
[1726213199368,2.7449,133.95,133.87,3.3616]
[1726213199369,3.361,133.9,133.87,3.3616]
[1726213200979,3.3611,133.89,133.87,3.3616]
[1726213203975,3.361,133.9,133.87,3.3615]
[1726213204175,3.361,133.9,133.86,12.8639]
[1726213205076,3.361,133.9,133.87,3.3615]
[1726213205475,3.361,133.9,133.86,12.8639]
[1726213206476,3.3607,133.91,133.88,3.3613]
[1726213207278,3.3609,133.9,133.87,3.3615]
[1726213209979,3.3609,133.9,133.88,3.3613]
[1726213212472,3.3609,133.9,133.87,3.3615]
[1726213213684,3.3611,133.89,133.86,16.2256]
[1726213215789,3.3613,133.88,133.86,16.2256]
[1726213216195,3.3613,133.88,133.86,12.8639]
[1726213217084,3.3613,133.88,133.86,1.3839]
[1726213217281,3.3613,133.88,133.85,0.58712246]
[1726213217282,3.3617,133.87,133.85,0.58712246]
[1726213217594,11.48,133.88,133.85,0.58712246]
[1726213217794,3.3618,133.86,133.85,0.58712246]
[1726213218297,3.3617,133.87,133.85,0.58712246]
[1726213219596,3.3614,133.88,133.86,11.48]
[1726213220895,3.3614,133.88,133.86,14.8418]
[1726213221891,3.3613,133.89,133.86,14.8418]
[1726213222193,11.48,133.9,133.86,14.8418]
[1726213222397,14.8415,133.88,133.85,3.94912246]
[1726213222795,11.48,133.88,133.85,3.94912246]
[1726213223089,3.3616,133.87,133.85,0.58712246]
[1726213225896,3.3618,133.86,133.85,0.58712246]
[1726213230297,3.3616,133.87,133.85,0.58712246]
[1726213230503,11.48,133.89,133.85,0.58712246]
[1726213230699,11.48,133.89,133.85,4.41280641]
[1726213231100,3.3614,133.88,133.85,7.77470641]
[1726213231710,3.3614,133.88,133.86,14.8418]
[1726213234808,3.3613,133.89,133.86,14.8418]
[1726213235009,16.11407991,133.94,133.88,11.48]
[1726213235310,11.48,133.93,133.89,11.48]
[1726213235910,3.3608,133.91,133.89,11.48]
[1726213236611,11.48,133.95,133.9,11.48]
[1726213237314,11.48,133.95,133.88,1.3111]
[1726213237508,11.48,133.95,133.9,11.48]
[1726213237704,11.48,133.94,133.9,11.48]
[1726213237909,3.3603,133.93,133.9,11.48]
[1726213238110,11.48,133.94,133.9,11.48]
[1726213238623,3.3603,133.93,133.9,11.48]
[1726213239121,3.3604,133.92,133.9,11.48]
[1726213243119,3.3602,133.93,133.9,11.48]
[1726213243721,3.3604,133.92,133.89,3.3609]
[1726213243923,3.3604,133.92,133.89,14.8409]
[1726213248017,3.3604,133.92,133.9,11.48]
[1726213248619,3.3602,133.93,133.9,14.8408]
[1726213252527,3.3604,133.92,133.9,11.48]
[1726213255326,3.3602,133.93,133.9,14.8408]
[1726213259327,3.3603,133.92,133.9,11.48]
[1726213260428,3.3603,133.92,133.89,3.361]
[1726213260622,3.3603,133.92,133.89,14.841]
[1726213262120,3.3603,133.92,133.89,3.361]
[1726213262421,3.3606,133.91,133.89,14.841]
[1726213262622,3.3606,133.91,133.89,11.48]
[1726213263333,3.3604,133.92,133.89,14.8411]
[1726213264224,3.3604,133.92,133.9,11.48]
[1726213267528,3.3602,133.93,133.9,3.3608]
[1726213267734,3.3602,133.93,133.91,11.48]
[1726213269037,3.3603,133.92,133.91,11.48]
[1726213269232,3.3603,133.92,133.89,3.361]
[1726213269432,3.3603,133.92,133.9,11.48]
[1726213273540,3.36,133.94,133.91,14.8406]
[1726213273735,3.36,133.94,133.92,11.48]
[1726213274039,3.3597,133.95,133.92,14.8403]
[1726213274538,3.3597,133.95,133.93,11.48]
[1726213275239,3.3597,133.95,133.93,14.84]
[1726213275444,2.6572,134.01,133.94,11.48]
[1726213275635,12.62892804,134.0,133.95,11.48]
[1726213275832,3.3592,133.97,133.95,11.48]
[1726213276341,11.48,133.98,133.93,2.6541]
[1726213276542,11.48,133.97,133.93,14.1341]
[1726213276944,11.48,133.97,133.93,12.7874]
[1726213277335,3.3594,133.96,133.93,12.7874]
[1726213278938,3.3596,133.95,133.93,12.7874]
[1726213279542,11.48,133.97,133.93,12.7874]
[1726213279742,11.48,133.97,133.93,1.3074]
[1726213279940,11.48,133.97,133.92,11.48]
[1726213280139,3.36,133.94,133.92,11.48]
[1726213284337,11.48,133.96,133.91,3.75653668]
[1726213284338,3.3601,133.93,133.91,3.75653668]
[1726213284543,3.3601,133.93,133.91,11.48]
[1726213286854,3.3599,133.94,133.91,14.8406]
[1726213287159,3.3599,133.94,133.92,11.48]
[1726213291047,3.3601,133.93,133.9,8.42669905]
[1726213291350,3.3601,133.93,133.9,19.90669905]
[1726213292154,3.3601,133.93,133.9,8.42669905]
[1726213292360,11.48,133.94,133.9,5.06599905]
[1726213292940,3.3603,133.93,133.9,16.54599905]
[1726213293144,3.3603,133.93,133.91,11.48]
[1726213294048,3.36,133.94,133.91,14.8405]
[1726213295161,3.3601,133.93,133.91,11.48]
[1726213295348,3.3601,133.93,133.9,8.42669905]
[1726213295349,3.3601,133.93,133.9,19.90669905]
[1726213295543,3.3601,133.93,133.9,16.1976]
[1726213295744,3.3601,133.93,133.9,19.97487136]
[1726213296050,3.3601,133.93,133.9,8.49487136]
[1726213296549,3.3603,133.92,133.9,8.49487136]
[1726213296854,3.3603,133.92,133.89,14.841]
[1726213297253,3.3603,133.92,133.89,7.06850556]
[1726213297444,3.3603,133.92,133.89,18.54850556]
[1726213304853,3.3602,133.93,133.9,14.8408]
[1726213305459,16.12711836,133.98,133.91,11.48]
[1726213305659,16.12711836,133.98,133.91,16.2628]
[1726213305660,11.48,133.97,133.91,16.2628]
[1726213305858,11.48,133.97,133.93,11.48]
[1726213306063,3.3597,133.95,133.93,11.48]
[1726213307959,3.3595,133.96,133.93,14.8401]
[1726213311776,3.3596,133.95,133.92,3.3602]
[1726213311972,3.3596,133.95,133.93,11.48]
[1726213312169,11.48,133.97,133.91,16.65501506]
[1726213312978,11.48,133.97,133.91,20.01541506]
[1726213313368,3.3599,133.94,133.91,20.01541506]
[1726213313871,3.3599,133.94,133.92,3.3603]
[1726213314567,3.3599,133.94,133.91,20.01551506]
[1726213318872,3.3599,133.94,133.91,8.53551506]
[1726213319174,3.3599,133.94,133.91,20.01551506]
[1726213326677,3.3599,133.94,133.92,3.3603]
[1726213326888,3.3597,133.95,133.93,11.48]
[1726213327080,11.48,133.98,133.94,11.48]
[1726213328281,16.12942726,133.99,133.95,11.48]
[1726213328480,6.7137,134.06,133.96,11.48]
[1726213328680,11.48,134.0,133.96,11.48]
[1726213329383,3.3586,133.99,133.96,11.48]
[1726213329782,11.48,134.0,133.96,11.48]
[1726213329979,3.359,133.98,133.95,11.48]
[1726213330175,11.48,133.99,133.95,11.48]
[1726213330382,11.48,133.98,133.95,11.48]
[1726213330988,11.48,133.98,133.94,3.3597]
[1726213330989,11.48,133.98,133.94,11.48]
[1726213331384,3.3594,133.96,133.94,11.48]
[1726213333488,11.48,133.96,133.92,1.3567]
[1726213333685,11.48,133.95,133.91,1.4224]
[1726213334077,3.3601,133.94,133.91,1.4224]
[1726213335792,3.3601,133.94,133.91,4.783]
[1726213336682,3.3601,133.94,133.91,16.263]
[1726213337589,3.3596,133.95,133.92,3.3603]
[1726213341895,3.3598,133.94,133.91,16.2629]
[1726213342487,11.48,133.95,133.91,1.4224]
[1726213343092,11.48,133.94,133.91,1.4224]
[1726213343589,3.3602,133.93,133.91,1.4224]
[1726213346493,3.3602,133.93,133.91,12.9024]
[1726213347200,3.3599,133.94,133.92,11.48]
[1726213356301,3.3597,133.95,133.92,14.8403]
[1726213356508,11.48,133.96,133.92,11.48]
[1726213356813,3.3595,133.96,133.93,14.8401]
[1726213357112,11.48,133.99,133.94,11.48]
[1726213357294,2.7682,134.02,133.95,11.48]
[1726213357504,1.15035038,134.01,133.97,11.48]
[1726213358404,11.48,134.02,133.97,11.48]
[1726213358607,3.3585,134.0,133.97,11.48]
[1726213360318,3.3582,134.01,133.97,14.839]
[1726213360709,19.49192419,134.02,133.99,11.48]
[1726213361023,3.3579,134.02,133.99,11.48]
[1726213366425,3.3579,134.02,133.98,3.3586]
[1726213366628,3.3579,134.02,133.99,11.48]
[1726213366934,3.3581,134.01,133.98,3.3586]
[1726213367134,11.48,134.01,133.97,2.5973]
[1726213367323,3.3587,133.99,133.97,2.5973]
[1726213368634,3.3587,133.99,133.97,1.2977]
[1726213370937,3.3586,133.99,133.97,1.2977]
[1726213372937,3.3588,133.98,133.95,11.48]
[1726213373144,2.7224,134.06,133.97,11.48]
[1726213373339,3.3582,134.01,133.99,11.48]
[1726213383240,3.3582,134.01,133.98,11.48]
[1726213384447,3.3584,134.0,133.98,11.48]
[1726213392251,3.3584,134.0,133.97,3.3591]
[1726213392441,3.3587,133.99,133.96,3.3592]
[1726213392649,11.48,134.0,133.96,3.3592]
[1726213392650,11.48,134.0,133.96,11.48]
[1726213393038,3.3587,133.99,133.96,11.48]
[1726213393439,11.48,134.0,133.96,11.48]
[1726213394146,3.3588,133.99,133.96,11.48]
[1726213395847,3.359,133.98,133.95,3.3594]
[1726213396047,3.359,133.98,133.95,14.8394]
[1726213396951,3.359,133.98,133.95,11.48]
[1726213397252,3.359,133.98,133.93,4.1995]
[1726213397253,11.48,133.98,133.93,4.1995]
[1726213397555,11.48,133.98,133.94,3.74990665]
[1726213397754,3.3593,133.96,133.94,3.74990665]
[1726213399052,3.3596,133.95,133.93,4.1995]
[1726213399251,11.48,133.97,133.93,15.6795]
[1726213399853,11.48,133.97,133.93,19.5065314]
[1726213400157,3.3595,133.96,133.93,22.8666314]
[1726213402054,3.3596,133.95,133.93,8.0265314]
[1726213402351,3.3596,133.95,133.93,2.8204]
[1726213402654,3.3598,133.94,133.92,15.3070314]
[1726213406158,3.3601,133.93,133.91,139.73388006]
[1726213406653,3.3601,133.93,133.91,143.43625567]
[1726213406958,11.48,133.96,133.92,3.3603]
[1726213408559,3.3598,133.94,133.92,3.3603]
[1726213409262,3.3598,133.94,133.91,143.43645567]
[1726213409856,3.3597,133.95,133.92,3.3603]
[1726213412266,11.48,133.96,133.93,3.36]
[1726213412267,3.3594,133.96,133.93,3.36]
[1726213412559,11.48,133.96,133.93,3.36]
[1726213412764,3.3598,133.95,133.92,19.91977815]
[1726213413464,3.3598,133.95,133.92,16.1864]
[1726213413763,3.3598,133.95,133.92,19.9235134]
[1726213413960,3.3598,133.95,133.92,16.1864]
[1726213414155,11.48,133.97,133.92,17.95570815]
[1726213415060,11.48,133.96,133.92,6.47570815]
[1726213415254,18.94878648,134.04,133.92,6.47570815]
[1726213415451,11.48,133.96,133.92,6.47570815]
[1726213415654,14.8395,133.96,133.92,9.83580815]
[1726213416353,14.8395,133.96,133.93,3.36]
[1726213418556,3.3595,133.96,133.93,14.84]
[1726213428073,16.13547632,134.03,133.95,11.48]
[1726213428372,11.48,134.01,133.97,11.48]
[1726213428576,11.48,134.01,133.97,14.8389]
[1726213428979,2.8143,134.04,133.97,14.8389]
[1726213429282,3.3582,134.01,133.97,14.8389]
[1726213429578,3.3582,134.01,133.98,3.3588]
[1726213431074,3.3582,134.01,133.98,14.8388]
[1726213431277,14.8379,134.02,133.98,14.8388]
[1726213431770,11.48,134.02,133.98,14.8388]
[1726213432476,11.48,134.01,133.97,14.8389]
[1726213433583,11.48,134.0,133.96,3.3592]
[1726213434392,14.8384,134.0,133.96,3.3592]
[1726213436786,14.8384,134.0,133.97,3.3591]
[1726213437379,3.3586,133.99,133.96,3.3592]
[1726213438578,11.48,133.99,133.93,1.4221]
[1726213438786,11.48,133.99,133.94,11.48]
[1726213439387,3.3592,133.97,133.94,14.8397]
[1726213439587,14.8392,133.97,133.94,14.8397]
[1726213441490,14.8392,133.97,133.95,3.3596]
[1726213441789,3.3592,133.97,133.95,3.3596]
[1726213445093,3.359,133.98,133.95,14.8396]
[1726213449093,3.3589,133.98,133.95,11.48]
[1726213449393,11.48,133.99,133.95,11.48]
[1726213449585,3.3591,133.97,133.95,11.48]
[1726213452291,3.3593,133.96,133.94,14.8396]
[1726213452689,11.48,133.98,133.94,14.8396]
[1726213452887,3.3592,133.97,133.94,14.8396]
[1726213457688,3.3591,133.97,133.94,14.8396]
[1726213457887,11.48,133.98,133.94,14.8396]
[1726213458592,3.3591,133.97,133.94,14.8396]
[1726213462501,14.8391,133.97,133.94,14.8396]
[1726213469394,18.82502174,134.03,133.95,14.8394]
[1726213469594,11.48,134.0,133.95,14.8394]
[1726213470205,2.6903,134.03,133.96,3.3591]
[1726213470508,11.48,134.0,133.96,11.48]
[1726213471009,11.48,133.99,133.95,11.48]
[1726213471902,18.82502174,134.03,133.95,11.48]
[1726213472102,11.48,134.0,133.95,11.48]
[1726213472805,3.3587,133.99,133.96,3.3593]
[1726213473308,3.3584,134.0,133.97,14.839]
[1726213473611,11.48,134.02,133.97,11.48]
[1726213474813,3.3583,134.01,133.98,3.3588]
[1726213475312,3.358,134.02,133.98,14.8388]
[1726213475504,3.358,134.02,133.99,3.3586]
[1726213476203,3.358,134.02,133.98,14.8387]
[1726213477509,3.3581,134.01,133.98,14.8387]
[1726213479805,11.48,134.02,133.98,11.48]
[1726213480206,16.13149132,134.1,133.97,3.3591]
[1726213480207,3.3585,134.0,133.97,3.3591]
[1726213481808,3.3589,133.98,133.95,3.3595]
[1726213482006,11.48,133.99,133.95,3.3595]
[1726213482220,11.48,134.0,133.95,11.48]
[1726213483118,3.3587,133.99,133.96,3.3592]
[1726213483413,3.3587,133.99,133.96,14.8392]
[1726213483615,11.48,134.01,133.97,3.3591]
[1726213483616,3.3585,134.0,133.97,3.3591]
[1726213485519,2.7537,134.06,133.99,11.48]
[1726213485722,11.48,134.04,133.99,11.48]
[1726213486723,3.358,134.02,133.99,14.8385]
[1726213489122,3.3581,134.01,133.98,14.8387]
[1726213489520,3.3581,134.01,133.98,3.3587]
[1726213490927,3.3583,134.0,133.97,14.839]
[1726213491126,3.3583,134.0,133.97,11.48]
[1726213492927,3.3583,134.0,133.98,3.3588]
[1726213500231,11.48,134.02,133.96,2.6773]
[1726213500436,11.48,134.01,133.97,3.359]